[Event "Titled Tuesday Blitz November 01 Early 2022"]
[White "Postnikov, Daniil"]
[Black "Goryachkina, Aleksandra"]
[WhiteFideId "4166329"]
[BlackFideId "4147103"]
[WhiteElo "2261"]
[BlackElo "2484"]
[Result "1-0"]
[Round "09"]
[TimeControl "180+1"]
[Date "2022.11.02"]
[WhiteClock "0:00:12"]
[BlackClock "0:00:04"]

1. d4 {[%clk 0:03:00]}  Nf6 {[%clk 0:02:59]} 2. c4 {[%clk 0:03:01]}  e6 {[%clk 0:02:59]} 3. Nf3 {[%clk 0:03:01]}  d5 {[%clk 0:02:58]} 4. g3 {[%clk 0:03:01]}  Bb4+ {[%clk 0:02:53]} 5. Bd2 {[%clk 0:03:01]}  Be7 {[%clk 0:02:52]} 6. Bg2 {[%clk 0:03:00]}  O-O {[%clk 0:02:52]} 7. O-O {[%clk 0:02:59]}  Nbd7 {[%clk 0:02:52]} 8. Qc2 {[%clk 0:02:59]}  c6 {[%clk 0:02:51]} 9. Bf4 {[%clk 0:02:58]}  b6 {[%clk 0:02:42]} 10. Rd1 {[%clk 0:02:55]}  Ba6 {[%clk 0:02:37]} 11. Nbd2 {[%clk 0:02:52]}  Nh5 {[%clk 0:02:24]} 12. Be3 {[%clk 0:02:47]}  Nhf6 {[%clk 0:02:12]} 13. Bf4 {[%clk 0:02:44]}  Rc8 {[%clk 0:02:09]} 14. e4 {[%clk 0:02:39]}  Nxe4 {[%clk 0:01:49]} 15. Nxe4 {[%clk 0:02:38]}  dxe4 {[%clk 0:01:50]} 16. Ne5 {[%clk 0:02:34]}  Nf6 {[%clk 0:01:41]} 17. Rac1 {[%clk 0:02:26]}  Bb7 {[%clk 0:01:36]} 18. c5 {[%clk 0:02:18]}  h6 {[%clk 0:01:33]} 19. Bxe4 {[%clk 0:02:14]}  Nxe4 {[%clk 0:01:24]} 20. Qxe4 {[%clk 0:02:15]}  Re8 {[%clk 0:00:46]} 21. b4 {[%clk 0:01:53]}  Qd5 {[%clk 0:00:33]} 22. Qe2 {[%clk 0:01:52]}  f6 {[%clk 0:00:24]} 23. Ng4 {[%clk 0:01:36]}  Rcd8 {[%clk 0:00:16]} 24. a3 {[%clk 0:01:27]}  Qd7 {[%clk 0:00:15]} 25. h4 {[%clk 0:01:18]}  Bc8 {[%clk 0:00:11]} 26. Ne3 {[%clk 0:01:14]}  Bf8 {[%clk 0:00:11]} 27. g4 {[%clk 0:01:06]}  Qf7 {[%clk 0:00:10]} 28. Kh2 {[%clk 0:00:52]}  bxc5 {[%clk 0:00:10]} 29. dxc5 {[%clk 0:00:50]}  e5 {[%clk 0:00:10]} 30. Bg3 {[%clk 0:00:49]}  Be6 {[%clk 0:00:10]} 31. Qa6 {[%clk 0:00:45]}  Bd5 {[%clk 0:00:05]} 32. Nxd5 {[%clk 0:00:43]}  cxd5 {[%clk 0:00:05]} 33. b5 {[%clk 0:00:41]}  d4 {[%clk 0:00:05]} 34. c6 {[%clk 0:00:41]}  h5 {[%clk 0:00:02]} 35. c7 {[%clk 0:00:39]}  Rc8 {[%clk 0:00:03]} 36. Qxa7 {[%clk 0:00:38]}  hxg4 {[%clk 0:00:03]} 37. b6 {[%clk 0:00:36]}  f5 {[%clk 0:00:03]} 38. Kg1 {[%clk 0:00:26]}  f4 {[%clk 0:00:03]} 39. Bh2 {[%clk 0:00:25]}  Re6 {[%clk 0:00:03]} 40. b7 {[%clk 0:00:22]}  g3 {[%clk 0:00:03]} 41. bxc8=Q {[%clk 0:00:16]}  gxh2+ {[%clk 0:00:03]} 42. Kxh2 {[%clk 0:00:13]}  Rh6 {[%clk 0:00:03]} 43. Qg4 {[%clk 0:00:12]}  Qf6 {[%clk 0:00:03]} 44. Kh3 {[%clk 0:00:12]}  Be7 {[%clk 0:00:03]} 45. c8=Q+ {[%clk 0:00:11]}  Kh7 {[%clk 0:00:04]} 46. Qcf5+ {[%clk 0:00:12]} 1-0


[Site "https://www.chess.com"]

[Event "Titled Tuesday Blitz November 01 Early 2022"]
[White "Reprintsev, Alexander"]
[Black "Rose, Felix"]
[WhiteFideId "14100541"]
[BlackFideId "5105722"]
[WhiteElo "2230"]
[BlackElo "2039"]
[Result "0-1"]
[Round "09"]
[TimeControl "180+1"]
[Date "2022.11.02"]
[WhiteClock "0:00:25"]
[BlackClock "0:00:08"]

1. e4 {[%clk 0:03:00]}  c5 {[%clk 0:02:58]} 2. b3 {[%clk 0:03:00]}  g6 {[%clk 0:02:57]} 3. Bb2 {[%clk 0:02:58]}  Nf6 {[%clk 0:02:57]} 4. e5 {[%clk 0:02:55]}  Nd5 {[%clk 0:02:57]} 5. Nc3 {[%clk 0:02:55]}  Nxc3 {[%clk 0:02:52]} 6. dxc3 {[%clk 0:02:56]}  Bg7 {[%clk 0:02:52]} 7. Qd5 {[%clk 0:02:54]}  Qc7 {[%clk 0:02:38]} 8. Nf3 {[%clk 0:02:41]}  O-O {[%clk 0:02:37]} 9. O-O-O {[%clk 0:02:39]}  Qa5 {[%clk 0:02:23]} 10. b4 {[%clk 0:02:33]}  Qc7 {[%clk 0:01:56]} 11. Qxc5 {[%clk 0:02:32]}  Qxc5 {[%clk 0:01:54]} 12. bxc5 {[%clk 0:02:31]}  Na6 {[%clk 0:01:53]} 13. Bxa6 {[%clk 0:02:28]}  bxa6 {[%clk 0:01:54]} 14. Rhe1 {[%clk 0:02:22]}  Rb8 {[%clk 0:01:53]} 15. Nd4 {[%clk 0:02:07]}  Bb7 {[%clk 0:01:44]} 16. f3 {[%clk 0:02:05]}  Rfc8 {[%clk 0:01:40]} 17. Ba3 {[%clk 0:02:03]}  Bd5 {[%clk 0:01:31]} 18. Nb3 {[%clk 0:01:54]}  e6 {[%clk 0:01:30]} 19. Rd4 {[%clk 0:01:50]}  d6 {[%clk 0:01:05]} 20. exd6 {[%clk 0:01:27]}  Bxb3 {[%clk 0:00:46]} 21. axb3 {[%clk 0:01:21]}  Bxd4 {[%clk 0:00:45]} 22. cxd4 {[%clk 0:01:21]}  Rc6 {[%clk 0:00:35]} 23. d5 {[%clk 0:01:10]}  exd5 {[%clk 0:00:32]} 24. d7 {[%clk 0:01:06]}  Kf8 {[%clk 0:00:27]} 25. Re5 {[%clk 0:01:04]}  d4 {[%clk 0:00:15]} 26. Kd2 {[%clk 0:00:58]}  Rd8 {[%clk 0:00:13]} 27. Rd5 {[%clk 0:00:57]}  Ke7 {[%clk 0:00:13]} 28. Kd3 {[%clk 0:00:56]}  Rxd7 {[%clk 0:00:14]} 29. Kxd4 {[%clk 0:00:56]}  Rxd5+ {[%clk 0:00:13]} 30. Kxd5 {[%clk 0:00:55]}  Kd7 {[%clk 0:00:14]} 31. Bb2 {[%clk 0:00:54]}  Re6 {[%clk 0:00:11]} 32. Be5 {[%clk 0:00:53]}  f6 {[%clk 0:00:11]} 33. Bd6 {[%clk 0:00:52]}  Re2 {[%clk 0:00:11]} 34. c6+ {[%clk 0:00:51]}  Kc8 {[%clk 0:00:11]} 35. c4 {[%clk 0:00:46]}  Rxg2 {[%clk 0:00:11]} 36. b4 {[%clk 0:00:45]}  Rb2 {[%clk 0:00:11]} 37. Ke6 {[%clk 0:00:41]}  Rc2 {[%clk 0:00:11]} 38. Kd5 {[%clk 0:00:40]}  f5 {[%clk 0:00:12]} 39. Kc5 {[%clk 0:00:37]}  g5 {[%clk 0:00:10]} 40. Be7 {[%clk 0:00:37]}  h6 {[%clk 0:00:10]} 41. Bd6 {[%clk 0:00:36]}  f4 {[%clk 0:00:09]} 42. h4 {[%clk 0:00:34]}  Rc3 {[%clk 0:00:07]} 43. hxg5 {[%clk 0:00:33]}  hxg5 {[%clk 0:00:08]} 44. Be7 {[%clk 0:00:33]}  Rxf3 {[%clk 0:00:09]} 45. Bxg5 {[%clk 0:00:33]}  Rf1 {[%clk 0:00:09]} 46. Kd4 {[%clk 0:00:29]}  f3 {[%clk 0:00:08]} 47. Ke3 {[%clk 0:00:28]}  f2 {[%clk 0:00:07]} 48. Ke2 {[%clk 0:00:25]}  Rg1 {[%clk 0:00:08]} 0-1


[Site "https://www.chess.com"]

[Event "Titled Tuesday Blitz November 01 Early 2022"]
[White "Rosh Jain"]
[Black "Safin, Robert"]
[WhiteFideId "25789465"]
[BlackFideId "34189120"]
[WhiteElo "2233"]
[BlackElo "2219"]
[Result "1-0"]
[Round "09"]
[TimeControl "180+1"]
[Date "2022.11.02"]
[WhiteClock "0:00:19"]
[BlackClock "0:00:01"]

1. e4 {[%clk 0:02:55]}  g6 {[%clk 0:02:58]} 2. d4 {[%clk 0:02:54]}  Bg7 {[%clk 0:02:58]} 3. Nf3 {[%clk 0:02:54]}  c6 {[%clk 0:02:58]} 4. Nc3 {[%clk 0:02:49]}  d5 {[%clk 0:02:58]} 5. e5 {[%clk 0:02:50]}  Bg4 {[%clk 0:02:56]} 6. h3 {[%clk 0:02:49]}  Bxf3 {[%clk 0:02:56]} 7. Qxf3 {[%clk 0:02:48]}  e6 {[%clk 0:02:56]} 8. Bd3 {[%clk 0:02:48]}  a6 {[%clk 0:02:54]} 9. Be3 {[%clk 0:02:47]}  Nd7 {[%clk 0:02:51]} 10. O-O {[%clk 0:02:45]}  c5 {[%clk 0:02:50]} 11. Qg3 {[%clk 0:02:33]}  Ne7 {[%clk 0:02:43]} 12. f4 {[%clk 0:02:31]}  Qc7 {[%clk 0:02:33]} 13. Kh1 {[%clk 0:02:27]}  b5 {[%clk 0:02:12]} 14. Bf2 {[%clk 0:02:23]}  b4 {[%clk 0:02:06]} 15. Na4 {[%clk 0:02:15]}  c4 {[%clk 0:02:06]} 16. Be2 {[%clk 0:02:14]}  Nf5 {[%clk 0:02:05]} 17. Qf3 {[%clk 0:02:14]}  h5 {[%clk 0:02:05]} 18. b3 {[%clk 0:02:11]}  c3 {[%clk 0:01:14]} 19. Bd3 {[%clk 0:02:01]}  a5 {[%clk 0:01:07]} 20. Bxf5 {[%clk 0:02:00]}  gxf5 {[%clk 0:01:07]} 21. Bh4 {[%clk 0:01:57]}  Bf8 {[%clk 0:00:27]} 22. Be1 {[%clk 0:01:48]}  h4 {[%clk 0:00:25]} 23. a3 {[%clk 0:01:46]}  Be7 {[%clk 0:00:25]} 24. axb4 {[%clk 0:01:46]}  axb4 {[%clk 0:00:26]} 25. Bf2 {[%clk 0:01:44]}  Kf8 {[%clk 0:00:25]} 26. Nc5 {[%clk 0:01:26]}  Kg7 {[%clk 0:00:24]} 27. Nd3 {[%clk 0:01:11]}  Qb7 {[%clk 0:00:09]} 28. Be3 {[%clk 0:00:48]}  Nf8 {[%clk 0:00:07]} 29. Rxa8 {[%clk 0:00:33]}  Qxa8 {[%clk 0:00:08]} 30. Qd1 {[%clk 0:00:32]}  Ng6 {[%clk 0:00:07]} 31. Qa1 {[%clk 0:00:31]}  Qa3 {[%clk 0:00:04]} 32. Qxa3 {[%clk 0:00:20]}  bxa3 {[%clk 0:00:04]} 33. Ra1 {[%clk 0:00:20]}  Ra8 {[%clk 0:00:04]} 34. Ra2 {[%clk 0:00:20]}  Nf8 {[%clk 0:00:02]} 35. Bc1 {[%clk 0:00:19]}  Nd7 {[%clk 0:00:02]} 36. b4 {[%clk 0:00:19]}  Nb6 {[%clk 0:00:01]} 37. Rxa3 {[%clk 0:00:19]} 1-0


[Site "https://www.chess.com"]

[Event "Titled Tuesday Blitz November 01 Early 2022"]
[White "Salem, A.R. Saleh"]
[Black "Gorodetzky, David"]
[WhiteFideId "9301348"]
[BlackFideId "2813416"]
[WhiteElo "2628"]
[BlackElo "2487"]
[Result "1-0"]
[Round "09"]
[TimeControl "180+1"]
[Date "2022.11.01"]
[WhiteClock "0:02:05"]
[BlackClock "0:00:02"]

1. d4 {[%clk 0:03:00]}  d5 {[%clk 0:02:52]} 2. c4 {[%clk 0:03:01]}  dxc4 {[%clk 0:02:49]} 3. Nf3 {[%clk 0:02:58]}  Nf6 {[%clk 0:02:49]} 4. Nc3 {[%clk 0:02:58]}  a6 {[%clk 0:02:46]} 5. e4 {[%clk 0:02:59]}  b5 {[%clk 0:02:45]} 6. e5 {[%clk 0:03:00]}  Nd5 {[%clk 0:02:44]} 7. a4 {[%clk 0:03:00]}  Bb7 {[%clk 0:02:37]} 8. e6 {[%clk 0:03:00]}  f6 {[%clk 0:02:22]} 9. Be2 {[%clk 0:02:59]}  Nxc3 {[%clk 0:02:07]} 10. bxc3 {[%clk 0:02:59]}  Qd5 {[%clk 0:02:08]} 11. O-O {[%clk 0:02:59]}  Qxe6 {[%clk 0:02:06]} 12. Re1 {[%clk 0:02:59]}  Nd7 {[%clk 0:01:59]} 13. Ng5 {[%clk 0:02:55]}  Qb6 {[%clk 0:01:20]} 14. Ne6 {[%clk 0:02:49]}  Bd5 {[%clk 0:01:02]} 15. Bf3 {[%clk 0:02:41]}  Bxe6 {[%clk 0:00:53]} 16. Bxa8 {[%clk 0:02:39]}  Kf7 {[%clk 0:00:38]} 17. Qf3 {[%clk 0:02:08]}  f5 {[%clk 0:00:03]} 18. Bg5 {[%clk 0:02:06]}  h6 {[%clk 0:00:02]} 19. Rxe6 {[%clk 0:02:06]}  Kxe6 {[%clk 0:00:02]} 20. Qd5# {[%clk 0:02:05]} 1-0


[Site "https://www.chess.com"]

[Event "Titled Tuesday Blitz November 01 Early 2022"]
[White "Sanchez, Robert"]
[Black "Zaichenko, Daria"]
[WhiteFideId "2034360"]
[BlackFideId "4197453"]
[WhiteElo "2399"]
[BlackElo "2039"]
[Result "1-0"]
[Round "09"]
[TimeControl "180+1"]
[Date "2022.11.02"]
[WhiteClock "0:00:15"]
[BlackClock "0:00:08"]

1. e4 {[%clk 0:03:00]}  c5 {[%clk 0:02:50]} 2. Nf3 {[%clk 0:03:01]}  Nc6 {[%clk 0:02:48]} 3. d4 {[%clk 0:03:01]}  cxd4 {[%clk 0:02:48]} 4. Nxd4 {[%clk 0:03:02]}  Nf6 {[%clk 0:02:48]} 5. Nc3 {[%clk 0:03:02]}  d6 {[%clk 0:02:48]} 6. f3 {[%clk 0:03:02]}  g6 {[%clk 0:02:40]} 7. Be3 {[%clk 0:03:02]}  Bg7 {[%clk 0:02:40]} 8. Qd2 {[%clk 0:03:03]}  a6 {[%clk 0:02:39]} 9. O-O-O {[%clk 0:03:02]}  Bd7 {[%clk 0:02:39]} 10. h4 {[%clk 0:03:01]}  h5 {[%clk 0:02:38]} 11. Kb1 {[%clk 0:03:00]}  Qa5 {[%clk 0:02:37]} 12. Nb3 {[%clk 0:02:58]}  Qc7 {[%clk 0:02:32]} 13. Bg5 {[%clk 0:02:58]}  Be6 {[%clk 0:02:18]} 14. Nd5 {[%clk 0:02:45]}  Bxd5 {[%clk 0:02:15]} 15. exd5 {[%clk 0:02:44]}  Ne5 {[%clk 0:02:12]} 16. f4 {[%clk 0:02:32]}  Ne4 {[%clk 0:02:04]} 17. Qe1 {[%clk 0:02:24]}  Nxg5 {[%clk 0:02:02]} 18. fxe5 {[%clk 0:02:13]}  Rc8 {[%clk 0:01:46]} 19. c3 {[%clk 0:01:59]}  Nh7 {[%clk 0:01:44]} 20. e6 {[%clk 0:01:59]}  f6 {[%clk 0:01:37]} 21. Bd3 {[%clk 0:01:47]}  Nf8 {[%clk 0:01:36]} 22. Qe2 {[%clk 0:01:39]}  Qb6 {[%clk 0:01:26]} 23. g4 {[%clk 0:01:32]}  hxg4 {[%clk 0:01:19]} 24. Qxg4 {[%clk 0:01:31]}  Rh6 {[%clk 0:01:19]} 25. h5 {[%clk 0:01:22]}  g5 {[%clk 0:01:19]} 26. Qa4+ {[%clk 0:01:10]}  Kd8 {[%clk 0:01:18]} 27. Nd4 {[%clk 0:01:00]}  Rxc3 {[%clk 0:00:57]} 28. Nf5 {[%clk 0:00:50]}  Rh7 {[%clk 0:00:49]} 29. h6 {[%clk 0:00:40]}  Bh8 {[%clk 0:00:42]} 30. Ng7 {[%clk 0:00:28]}  Rxg7 {[%clk 0:00:38]} 31. hxg7 {[%clk 0:00:26]}  Bxg7 {[%clk 0:00:38]} 32. Rh7 {[%clk 0:00:25]}  Rxd3 {[%clk 0:00:25]} 33. Rxd3 {[%clk 0:00:25]}  Qg1+ {[%clk 0:00:25]} 34. Rd1 {[%clk 0:00:24]}  Qf2 {[%clk 0:00:18]} 35. Rxg7 {[%clk 0:00:20]}  Qc5 {[%clk 0:00:12]} 36. Rc1 {[%clk 0:00:16]}  Qe3 {[%clk 0:00:10]} 37. Qe8+ {[%clk 0:00:14]}  Kxe8 {[%clk 0:00:08]} 38. Rc8# {[%clk 0:00:15]} 1-0


[Site "https://www.chess.com"]

[Event "Titled Tuesday Blitz November 01 Early 2022"]
[White "Schut, Han"]
[Black "Bashirli, Saadat"]
[WhiteFideId "1005561"]
[BlackFideId "13429990"]
[WhiteElo "2024"]
[BlackElo "1408"]
[Result "0-1"]
[Round "09"]
[TimeControl "180+1"]
[Date "2022.11.02"]
[WhiteClock "0:00:02"]
[BlackClock "0:00:07"]

1. e4 {[%clk 0:02:59]}  c5 {[%clk 0:03:00]} 2. Nf3 {[%clk 0:02:58]}  g6 {[%clk 0:03:00]} 3. c4 {[%clk 0:02:58]}  Bg7 {[%clk 0:02:58]} 4. d4 {[%clk 0:02:58]}  cxd4 {[%clk 0:02:59]} 5. Nxd4 {[%clk 0:02:59]}  Nf6 {[%clk 0:02:58]} 6. Nc3 {[%clk 0:02:59]}  d6 {[%clk 0:02:57]} 7. Be2 {[%clk 0:02:58]}  O-O {[%clk 0:02:55]} 8. Be3 {[%clk 0:02:56]}  Nc6 {[%clk 0:02:50]} 9. f3 {[%clk 0:02:55]}  a5 {[%clk 0:02:45]} 10. b3 {[%clk 0:02:47]}  Bd7 {[%clk 0:02:41]} 11. Rc1 {[%clk 0:02:46]}  Nb4 {[%clk 0:02:29]} 12. O-O {[%clk 0:02:39]}  Rc8 {[%clk 0:02:21]} 13. Qd2 {[%clk 0:02:35]}  Bc6 {[%clk 0:02:16]} 14. Rb1 {[%clk 0:02:29]}  Na6 {[%clk 0:02:11]} 15. a3 {[%clk 0:02:28]}  Ra8 {[%clk 0:01:51]} 16. b4 {[%clk 0:02:24]}  axb4 {[%clk 0:01:52]} 17. axb4 {[%clk 0:02:25]}  Nc7 {[%clk 0:01:50]} 18. Ra1 {[%clk 0:01:56]}  Rxa1 {[%clk 0:01:43]} 19. Rxa1 {[%clk 0:01:55]}  Bd7 {[%clk 0:01:42]} 20. Ra7 {[%clk 0:01:44]}  Qb8 {[%clk 0:01:39]} 21. Qa2 {[%clk 0:01:41]}  Na6 {[%clk 0:01:36]} 22. Rxa6 {[%clk 0:01:23]}  bxa6 {[%clk 0:01:34]} 23. b5 {[%clk 0:01:13]}  axb5 {[%clk 0:01:30]} 24. cxb5 {[%clk 0:01:07]}  Rc8 {[%clk 0:01:27]} 25. Qb3 {[%clk 0:01:00]}  Qc7 {[%clk 0:01:19]} 26. Nd5 {[%clk 0:00:48]}  Nxd5 {[%clk 0:01:18]} 27. exd5 {[%clk 0:00:49]}  Qc3 {[%clk 0:01:03]} 28. Qxc3 {[%clk 0:00:43]}  Rxc3 {[%clk 0:01:04]} 29. b6 {[%clk 0:00:26]}  Bc8 {[%clk 0:00:43]} 30. Kf2 {[%clk 0:00:19]}  Bb7 {[%clk 0:00:39]} 31. Nc6 {[%clk 0:00:13]}  Kf8 {[%clk 0:00:32]} 32. Nd8 {[%clk 0:00:09]}  Bxd5 {[%clk 0:00:28]} 33. b7 {[%clk 0:00:09]}  Rb3 {[%clk 0:00:24]} 34. Ba6 {[%clk 0:00:08]}  Rb2+ {[%clk 0:00:20]} 35. Kg3 {[%clk 0:00:08]}  Be5+ {[%clk 0:00:19]} 36. Kh3 {[%clk 0:00:07]}  Ke8 {[%clk 0:00:16]} 37. Ba7 {[%clk 0:00:07]}  Kxd8 {[%clk 0:00:10]} 38. b8=Q+ {[%clk 0:00:06]}  Rxb8 {[%clk 0:00:10]} 39. Bxb8 {[%clk 0:00:07]}  Be6+ {[%clk 0:00:10]} 40. g4 {[%clk 0:00:05]}  h5 {[%clk 0:00:10]} 41. Be2 {[%clk 0:00:03]}  Kc8 {[%clk 0:00:07]} 42. Ba7 {[%clk 0:00:02]}  d5 {[%clk 0:00:07]} 43. Bc5 {[%clk 0:00:02]}  Kd7 {[%clk 0:00:07]} 0-1


[Site "https://www.chess.com"]

[Event "Titled Tuesday Blitz November 01 Early 2022"]
[White "Selkirk, Rebecca"]
[Black "Alexikov, Alexander"]
[WhiteFideId "14306514"]
[BlackFideId "14103958"]
[WhiteElo "1649"]
[BlackElo "2222"]
[Result "0-1"]
[Round "09"]
[TimeControl "180+1"]
[Date "2022.11.02"]
[WhiteClock "0:00:05"]
[BlackClock "0:01:03"]

1. e4 {[%clk 0:03:00]}  c5 {[%clk 0:02:59]} 2. Nf3 {[%clk 0:03:00]}  d6 {[%clk 0:02:59]} 3. d4 {[%clk 0:03:01]}  cxd4 {[%clk 0:02:59]} 4. Nxd4 {[%clk 0:03:02]}  Nf6 {[%clk 0:02:59]} 5. Nc3 {[%clk 0:03:02]}  a6 {[%clk 0:03:00]} 6. Bg5 {[%clk 0:03:03]}  e6 {[%clk 0:02:59]} 7. f4 {[%clk 0:03:03]}  Qb6 {[%clk 0:02:59]} 8. Qf3 {[%clk 0:03:03]}  Qxb2 {[%clk 0:02:53]} 9. Rb1 {[%clk 0:02:53]}  Qa3 {[%clk 0:02:52]} 10. Bc4 {[%clk 0:02:34]}  Qc5 {[%clk 0:02:38]} 11. Qd3 {[%clk 0:02:17]}  b5 {[%clk 0:02:37]} 12. Bb3 {[%clk 0:01:41]}  Be7 {[%clk 0:02:06]} 13. Rd1 {[%clk 0:01:01]}  Nc6 {[%clk 0:01:47]} 14. Nxc6 {[%clk 0:00:51]}  Qxc6 {[%clk 0:01:45]} 15. e5 {[%clk 0:00:49]}  dxe5 {[%clk 0:01:38]} 16. Bxf6 {[%clk 0:00:34]}  gxf6 {[%clk 0:01:28]} 17. fxe5 {[%clk 0:00:18]}  Qxg2 {[%clk 0:01:18]} 18. Rf1 {[%clk 0:00:18]}  fxe5 {[%clk 0:01:17]} 19. Ne4 {[%clk 0:00:18]}  Bh4+ {[%clk 0:01:13]} 20. Ng3 {[%clk 0:00:15]}  Qxh2 {[%clk 0:01:09]} 21. Qf3 {[%clk 0:00:04]}  Bxg3+ {[%clk 0:01:03]} 22. Rf2 {[%clk 0:00:04]}  Qxf2+ {[%clk 0:01:03]} 23. Qxf2 {[%clk 0:00:04]}  Bxf2+ {[%clk 0:01:03]} 24. Kxf2 {[%clk 0:00:05]} 0-1


[Site "https://www.chess.com"]

[Event "Titled Tuesday Blitz November 01 Early 2022"]
[White "Sokolovsky, Yahli"]
[Black "Durarbayli, Vasif"]
[WhiteFideId "2820242"]
[BlackFideId "13402935"]
[WhiteElo "2316"]
[BlackElo "2586"]
[Result "0-1"]
[Round "09"]
[TimeControl "180+1"]
[Date "2022.11.01"]
[WhiteClock "0:00:02"]
[BlackClock "0:00:19"]

1. b3 {[%clk 0:03:00]}  e5 {[%clk 0:02:58]} 2. Bb2 {[%clk 0:03:00]}  Nc6 {[%clk 0:02:58]} 3. e3 {[%clk 0:02:59]}  d5 {[%clk 0:02:56]} 4. Nf3 {[%clk 0:02:58]}  e4 {[%clk 0:02:55]} 5. Nd4 {[%clk 0:02:58]}  Nxd4 {[%clk 0:02:56]} 6. Bxd4 {[%clk 0:02:59]}  Bf5 {[%clk 0:02:55]} 7. Be2 {[%clk 0:02:36]}  Qg5 {[%clk 0:02:51]} 8. Kf1 {[%clk 0:02:13]}  h5 {[%clk 0:02:50]} 9. h4 {[%clk 0:02:12]}  Qg6 {[%clk 0:02:48]} 10. c4 {[%clk 0:02:11]}  c5 {[%clk 0:02:23]} 11. Bb2 {[%clk 0:02:10]}  d4 {[%clk 0:02:23]} 12. exd4 {[%clk 0:02:09]}  cxd4 {[%clk 0:02:22]} 13. Bxd4 {[%clk 0:02:08]}  Nf6 {[%clk 0:02:18]} 14. Nc3 {[%clk 0:02:05]}  Be7 {[%clk 0:02:14]} 15. Nd5 {[%clk 0:01:19]}  Nxd5 {[%clk 0:02:08]} 16. cxd5 {[%clk 0:01:20]}  a6 {[%clk 0:01:56]} 17. Rc1 {[%clk 0:01:16]}  Bd6 {[%clk 0:01:56]} 18. b4 {[%clk 0:01:09]}  Bg4 {[%clk 0:01:34]} 19. Qa4+ {[%clk 0:00:39]}  Bd7 {[%clk 0:01:28]} 20. Qd1 {[%clk 0:00:39]}  O-O {[%clk 0:01:12]} 21. Bxh5 {[%clk 0:00:37]}  Qf5 {[%clk 0:01:13]} 22. Bc5 {[%clk 0:00:25]}  Qxd5 {[%clk 0:01:09]} 23. Be2 {[%clk 0:00:20]}  Rad8 {[%clk 0:00:51]} 24. Bc4 {[%clk 0:00:19]}  Qe5 {[%clk 0:00:48]} 25. Be3 {[%clk 0:00:15]}  Kh7 {[%clk 0:00:43]} 26. a3 {[%clk 0:00:15]}  Be8 {[%clk 0:00:39]} 27. g3 {[%clk 0:00:12]}  f5 {[%clk 0:00:37]} 28. h5 {[%clk 0:00:08]}  Bc6 {[%clk 0:00:21]} 29. Rh4 {[%clk 0:00:08]}  Qf6 {[%clk 0:00:20]} 30. Rh2 {[%clk 0:00:04]}  f4 {[%clk 0:00:20]} 31. gxf4 {[%clk 0:00:04]}  Bxf4 {[%clk 0:00:21]} 32. Rg2 {[%clk 0:00:04]}  Bxe3 {[%clk 0:00:21]} 33. Qg4 {[%clk 0:00:02]}  Bxd2 {[%clk 0:00:19]} 34. Rd1 {[%clk 0:00:02]}  Bh6 {[%clk 0:00:19]} 35. Rxd8 {[%clk 0:00:01]}  Rxd8 {[%clk 0:00:20]} 36. Qxe4+ {[%clk 0:00:02]}  Bxe4 {[%clk 0:00:19]} 0-1


[Site "https://www.chess.com"]

[Event "Titled Tuesday Blitz November 01 Early 2022"]
[White "Szente Varga, Fruzsina"]
[Black "Budrewicz, Krzysztof"]
[WhiteFideId "712264"]
[BlackFideId "1127950"]
[WhiteElo "1994"]
[BlackElo "2171"]
[Result "0-1"]
[Round "09"]
[TimeControl "180+1"]
[Date "2022.11.02"]
[WhiteClock "0:00:13"]
[BlackClock "0:01:28"]

1. e4 {[%clk 0:03:00]}  Nc6 {[%clk 0:02:59]} 2. d4 {[%clk 0:03:00]}  d5 {[%clk 0:02:58]} 3. e5 {[%clk 0:03:00]}  Bf5 {[%clk 0:02:58]} 4. c3 {[%clk 0:02:59]}  e6 {[%clk 0:02:58]} 5. Bd3 {[%clk 0:02:58]}  Nge7 {[%clk 0:02:58]} 6. Ne2 {[%clk 0:02:58]}  Qd7 {[%clk 0:02:57]} 7. O-O {[%clk 0:02:51]}  f6 {[%clk 0:02:57]} 8. f4 {[%clk 0:02:43]}  Be4 {[%clk 0:02:57]} 9. Ng3 {[%clk 0:02:42]}  f5 {[%clk 0:02:58]} 10. Be3 {[%clk 0:02:28]}  O-O-O {[%clk 0:02:55]} 11. b4 {[%clk 0:02:27]}  h6 {[%clk 0:02:53]} 12. a4 {[%clk 0:02:20]}  Rg8 {[%clk 0:02:50]} 13. a5 {[%clk 0:02:17]}  g5 {[%clk 0:02:50]} 14. Nh5 {[%clk 0:02:16]}  Bg7 {[%clk 0:02:47]} 15. Bxe4 {[%clk 0:02:06]}  dxe4 {[%clk 0:02:44]} 16. b5 {[%clk 0:02:06]}  Nxe5 {[%clk 0:02:30]} 17. fxe5 {[%clk 0:02:01]}  f4 {[%clk 0:02:31]} 18. Bc1 {[%clk 0:01:37]}  Bxe5 {[%clk 0:02:27]} 19. b6 {[%clk 0:01:29]}  a6 {[%clk 0:02:22]} 20. bxc7 {[%clk 0:01:27]}  Bxc7 {[%clk 0:02:22]} 21. Nd2 {[%clk 0:01:24]}  e3 {[%clk 0:02:21]} 22. Nc4 {[%clk 0:01:23]}  Qb5 {[%clk 0:02:16]} 23. Nb6+ {[%clk 0:01:07]}  Bxb6 {[%clk 0:02:14]} 24. axb6 {[%clk 0:01:08]}  e2 {[%clk 0:02:14]} 25. Qe1 {[%clk 0:00:55]}  exf1=Q+ {[%clk 0:02:14]} 26. Qxf1 {[%clk 0:00:56]}  Qxf1+ {[%clk 0:02:14]} 27. Kxf1 {[%clk 0:00:57]}  Nd5 {[%clk 0:02:12]} 28. Rb1 {[%clk 0:00:57]}  Nxc3 {[%clk 0:02:11]} 29. Rb3 {[%clk 0:00:49]}  Nb5 {[%clk 0:02:09]} 30. Bb2 {[%clk 0:00:31]}  Rgf8 {[%clk 0:02:04]} 31. Ng7 {[%clk 0:00:29]}  Rd6 {[%clk 0:02:03]} 32. Rb4 {[%clk 0:00:25]}  Rf7 {[%clk 0:01:59]} 33. Nh5 {[%clk 0:00:25]}  Rxb6 {[%clk 0:01:52]} 34. Ke2 {[%clk 0:00:20]}  Rc6 {[%clk 0:01:52]} 35. Kd3 {[%clk 0:00:20]}  Kd7 {[%clk 0:01:52]} 36. Ke4 {[%clk 0:00:19]}  b6 {[%clk 0:01:48]} 37. d5 {[%clk 0:00:15]}  exd5+ {[%clk 0:01:46]} 38. Kxd5 {[%clk 0:00:16]}  Rd6+ {[%clk 0:01:42]} 39. Ke4 {[%clk 0:00:16]}  Re7+ {[%clk 0:01:43]} 40. Kf3 {[%clk 0:00:16]}  Rd3+ {[%clk 0:01:42]} 41. Kg4 {[%clk 0:00:16]}  Rd2 {[%clk 0:01:43]} 42. Nf6+ {[%clk 0:00:16]}  Kc6 {[%clk 0:01:42]} 43. g3 {[%clk 0:00:16]}  fxg3 {[%clk 0:01:39]} 44. hxg3 {[%clk 0:00:16]}  a5 {[%clk 0:01:40]} 45. Rc4+ {[%clk 0:00:16]}  Kb7 {[%clk 0:01:39]} 46. Ba1 {[%clk 0:00:17]}  Rd6 {[%clk 0:01:33]} 47. Ng8 {[%clk 0:00:15]}  Rc7 {[%clk 0:01:31]} 48. Re4 {[%clk 0:00:15]}  Rdc6 {[%clk 0:01:29]} 49. Be5 {[%clk 0:00:14]}  Rc8 {[%clk 0:01:28]} 50. Nf6 {[%clk 0:00:14]}  Rc4 {[%clk 0:01:28]} 51. Kf5 {[%clk 0:00:14]}  Rxe4 {[%clk 0:01:28]} 52. Nxe4 {[%clk 0:00:14]}  a4 {[%clk 0:01:27]} 53. Kg6 {[%clk 0:00:14]}  a3 {[%clk 0:01:27]} 54. Kxh6 {[%clk 0:00:14]}  Re8 {[%clk 0:01:27]} 55. Nd6+ {[%clk 0:00:12]}  Nxd6 {[%clk 0:01:27]} 56. Bxd6 {[%clk 0:00:13]}  a2 {[%clk 0:01:28]} 0-1


[Site "https://www.chess.com"]